fUSD/lending_fUSD_20250407
["ID","MTS","AMOUNT","RATE_DAILY","PERIOD"]
[357308952,1744004200020,-500.0,0.00049315,120]
[357308953,1744004200078,-500.0,0.00049315,120]
[357308954,1744004200138,-500.0,0.00049315,120]
[357308955,1744004200199,-492.37705816,0.00049315,120]
[357308956,1744004200259,-500.0,0.00049315,120]
[357308957,1744004200319,-500.0,0.00049315,120]
[357308958,1744004200378,-500.0,0.00049315,120]
[357308959,1744004200437,-322.47149403,0.00049315,120]
[357308960,1744004200496,-500.0,0.00049315,120]
[357308961,1744004200556,-500.0,0.00049315,120]
[357308962,1744004200614,-500.0,0.00049315,120]
[357308963,1744004200836,-500.0,0.00049315,120]
[357308964,1744004200902,-576.76,0.00049315,120]
[357308965,1744004200963,-500.0,0.00049315,120]
[357308966,1744004201024,-500.0,0.00049315,120]
[357308967,1744004201082,-500.0,0.00049315,120]
[357308968,1744004201139,-500.0,0.00049315,120]
[357308969,1744004201197,-506.67415753,0.00049315,120]
[357308970,1744004201253,-551.64623614,0.00049315,120]
[357308971,1744004201310,-500.0,0.00049315,120]
[357308972,1744004201368,-500.0,0.00049315,120]
[357308973,1744004201424,-500.0,0.00049315,120]
[357308974,1744004201480,-500.0,0.00049315,120]
[357308975,1744004201538,-500.0,0.00049315,120]
[357308976,1744004201595,-500.0,0.00049315,120]
[357308977,1744004201652,-500.0,0.00049315,120]
[357308978,1744004201708,-500.0,0.00049315,120]
[357308979,1744004201764,-500.0,0.00049315,120]
[357308980,1744004201819,-500.0,0.00049315,120]
[357308981,1744004201876,-500.70659865,0.00049315,120]
[357308982,1744004201935,-500.0,0.00049315,120]
[357308983,1744004201997,-500.0,0.00049315,120]
[357308984,1744004202059,-500.0,0.00049315,120]
[357308985,1744004202127,-500.0,0.00049315,120]
[357308986,1744004202186,-507.90218702,0.00049315,120]
[357308987,1744004202245,-500.0,0.00049315,120]
[357308988,1744004202306,-500.0,0.00049315,120]
[357308989,1744004202372,-500.0,0.00049315,120]
[357308990,1744004202435,-500.0,0.00049315,120]
[357308991,1744004202495,-500.0,0.00049315,120]
[357308992,1744004202554,-500.0,0.00049315,120]
[357308993,1744004202614,-500.0,0.00049315,120]
[357308994,1744004202676,-500.0,0.00049315,120]
[357308995,1744004202742,-500.0,0.00049315,120]
[357308996,1744004202805,-500.0,0.00049315,120]
[357308997,1744004202870,-500.0,0.00049315,120]
[357308998,1744004202933,-500.0,0.00049315,120]
[357308999,1744004202995,-500.0,0.00049315,120]
[357309000,1744004203058,-500.0,0.00049315,120]
[357309001,1744004203124,-500.0,0.00049315,120]
[357309002,1744004203190,-500.0,0.00049315,120]
[357309003,1744004203256,-178.29886159,0.00049315,120]
[357309004,1744004203320,-567.10813921,0.00049315,120]
[357309005,1744004203381,-500.0,0.00049315,120]
[357309006,1744004203442,-500.0,0.00049315,120]
[357309007,1744004203502,-500.0,0.00049315,120]
[357309008,1744004203557,-598.2,0.00049315,120]
[357309009,1744004203615,-500.0,0.00049315,120]
[357309010,1744004203680,-500.0,0.00049315,120]
[357309011,1744004203742,-500.0,0.00049315,120]
[357309012,1744004203799,-500.0,0.00049315,120]
[357309013,1744004203857,-500.0,0.00049315,120]
[357309014,1744004203916,-920.78,0.00049315,120]
[357309015,1744004203976,-508.00856889,0.00049315,120]
[357309016,1744004204041,-500.0,0.00049315,120]
[357309017,1744004204124,-500.0,0.00049315,120]
[357309018,1744004204195,-500.0,0.00049315,120]
[357309019,1744004204263,-500.0,0.00049315,120]
[357309020,1744004204333,-535.49627303,0.00049315,120]
[357309021,1744004204403,-1760.18,0.00049315,120]
[357309022,1744004204472,-500.0,0.00049315,120]
[357309023,1744004204537,-500.0,0.00049315,120]
[357309024,1744004204604,-500.0,0.00049315,120]
[357309025,1744004204668,-487.22160868,0.00049315,120]
[357309026,1744004204729,-500.0,0.00049315,120]
[357309027,1744004204795,-500.0,0.00049315,120]
[357309028,1744004204859,-500.0,0.00049315,120]
[357309029,1744004204934,-500.0,0.00049589,120]
[357309030,1744004204999,-500.0,0.00049589,120]
[357309031,1744004205058,-569.60783225,0.00049589,120]
[357309032,1744004205116,-500.0,0.00049589,120]
[357309033,1744004205176,-500.0,0.00049589,120]
[357309034,1744004205233,-576.76,0.00049589,120]
[357309035,1744004205291,-500.0,0.00049589,120]
[357309036,1744004205352,-500.0,0.00049589,120]
[357309037,1744004205413,-500.0,0.00049589,120]
[357309038,1744004205475,-646.75,0.00049589,120]
[357309039,1744004205536,-304.98335028,0.00049589,120]
[357309040,1744004205597,-500.0,0.00049589,120]
[357309041,1744004205657,-500.0,0.00049589,120]
[357309042,1744004205718,-500.0,0.00049589,120]
[357309043,1744004205778,-500.0,0.00049589,120]
[357309044,1744004205836,-500.0,0.00049589,120]
[357309045,1744004206105,-500.0,0.00049589,120]
[357309046,1744004206171,-500.0,0.00049589,120]
[357309047,1744004206232,-644.15,0.00049589,120]
[357309048,1744004206293,-500.0,0.00049589,120]
[357309049,1744004206351,-500.0,0.00049589,120]
[357309050,1744004206411,-500.0,0.00049589,120]
[357309051,1744004206470,-500.0,0.00049589,120]
[357309052,1744004206530,-500.0,0.00049589,120]
[357309053,1744004206588,-500.0,0.00049589,120]
[357309054,1744004206650,-500.0,0.00049589,120]
[357309055,1744004206714,-598.2,0.00049589,120]
[357309056,1744004206778,-529.2,0.00049589,120]
[357309057,1744004206834,-920.78,0.00049589,120]
[357309058,1744004206890,-500.0,0.00049589,120]
[357309059,1744004206952,-500.0,0.00049589,120]
[357309060,1744004207017,-1760.18,0.00049589,120]
[357309061,1744004207083,-500.0,0.00049589,120]
[357309062,1744004207144,-500.0,0.00049589,120]
[357309063,1744004207206,-500.0,0.00049589,120]
[357309064,1744004207266,-196.19188101,0.00049589,120]
[357309065,1744004207326,-500.0,0.00049589,120]
[357309066,1744004207386,-500.0,0.00049589,120]
[357309067,1744004207446,-536.747963,0.00049863,120]
[357309068,1744004207504,-500.0,0.00049863,120]
[357309069,1744004207563,-500.0,0.00049863,120]
[357309070,1744004207625,-500.0,0.00049863,120]
[357309071,1744004207684,-576.76,0.00049863,120]
[357309072,1744004207747,-500.0,0.00049863,120]
[357309073,1744004207809,-500.0,0.00049863,120]
[357309074,1744004207869,-500.0,0.00049863,120]
[357309075,1744004207934,-500.0,0.00049863,120]
[357309076,1744004207993,-500.0,0.00049863,120]
[357309077,1744004208055,-500.0,0.00049863,120]
[357309078,1744004208127,-500.0,0.00049863,120]
[357309079,1744004208192,-500.0,0.00049863,120]
[357309080,1744004208259,-500.0,0.00049863,120]
[357309081,1744004208326,-500.0,0.00049863,120]
[357309082,1744004208396,-500.0,0.00049863,120]
[357309083,1744004208461,-500.0,0.00049863,120]
[357309084,1744004208523,-500.0,0.00049863,120]
[357309085,1744004208583,-500.0,0.00049863,120]
[357309086,1744004208644,-598.2,0.00049863,120]
[357309087,1744004208708,-920.78,0.00049863,120]
[357309088,1744004208769,-500.0,0.00049863,120]
[357309089,1744004208830,-500.0,0.00049863,120]
[357309090,1744004208891,-1760.18,0.00049863,120]
[357309091,1744004208951,-500.0,0.00049863,120]
[357309092,1744004209012,-500.0,0.00049863,120]
[357309093,1744004209078,-500.0,0.00049863,120]
[357309094,1744004209139,-500.0,0.00049863,120]
[357309095,1744004209201,-500.0,0.00049863,120]
[357309096,1744004209263,-707.0,0.0005,120]
[357309097,1744004209327,-521.07113387,0.00050136,120]
[357309098,1744004209392,-500.0,0.00050136,120]
[357309099,1744004209457,-500.0,0.00050136,120]
[357309100,1744004209516,-500.0,0.00050136,120]
[357309101,1744004209576,-576.76,0.00050136,120]
[357309102,1744004209638,-500.0,0.00050136,120]
[357309103,1744004209704,-500.0,0.00050136,120]
[357309104,1744004209764,-500.0,0.00050136,120]
[357309105,1744004209822,-500.0,0.00050136,120]
[357309106,1744004209877,-500.0,0.00050136,120]
[357309107,1744004209933,-500.0,0.00050136,120]
[357309108,1744004209991,-500.0,0.00050136,120]
[357309109,1744004210055,-500.0,0.00050136,120]
[357309110,1744004210120,-500.0,0.00050136,120]
[357309111,1744004210187,-470.65797461,0.00050136,120]
[357309112,1744004210248,-500.0,0.00050136,120]
[357309113,1744004210313,-500.0,0.00050136,120]
[357309114,1744004210377,-500.0,0.00050136,120]
[357309115,1744004210440,-500.0,0.00050136,120]
[357309116,1744004210503,-598.2,0.00050136,120]
[357309117,1744004210565,-920.78,0.00050136,120]
[357309118,1744004210629,-500.0,0.00050136,120]
[357309119,1744004210693,-150.0,0.00050136,120]
[357309120,1744004210754,-537.88313597,0.00050136,120]
[357309121,1744004210814,-1760.18,0.00050136,120]
[357309122,1744004210877,-500.0,0.00050136,120]
[357309123,1744004210940,-500.0,0.00050136,120]
[357309124,1744004211000,-500.0,0.00050136,120]
[357309125,1744004211061,-500.0,0.00050136,120]
[357309126,1744004211122,-500.0,0.00050136,120]
[357309127,1744004211189,-175.0,0.000504,120]
[357309128,1744004211254,-6019.60646993,0.000504,120]
[357309129,1744004211318,-353.0,0.000504,120]
[357309130,1744004211383,-29.13453912,0.0005041,120]
[357309131,1744004211446,-500.0,0.0005041,120]
[357309132,1744004211509,-349.36819715,0.0005041,120]
[357309133,1744004211571,-500.0,0.0005041,120]
[357309134,1744004211634,-500.0,0.0005041,120]
[357309135,1744004211696,-500.0,0.0005041,120]
[357309136,1744004211758,-528.02357818,0.0005041,120]
[357309137,1744004212016,-500.0,0.0005041,120]
[357309138,1744004212081,-869.5,0.0005041,120]
[357309139,1744004212141,-500.0,0.0005041,120]
[357309140,1744004212202,-500.0,0.0005041,120]
[357309141,1744004212262,-500.0,0.0005041,120]
[357309142,1744004212324,-500.0,0.0005041,120]
[357309143,1744004212387,-636.87927462,0.0005041,120]
[357309144,1744004212452,-500.0,0.0005041,120]
[357309145,1744004212513,-500.0,0.0005041,120]
[357309146,1744004212572,-500.0,0.0005041,120]
[357309147,1744004212633,-500.0,0.0005041,120]
[357309148,1744004212695,-500.0,0.0005041,120]
[357309149,1744004212755,-500.0,0.0005041,120]
[357309150,1744004212820,-319.18,0.0005041,120]
[357309151,1744004212883,-500.0,0.0005041,120]
[357309152,1744004212943,-891.76,0.0005041,120]
[357309153,1744004213003,-500.0,0.0005041,120]
[357309154,1744004213061,-543.86,0.0005041,120]
[357309155,1744004213119,-500.0,0.0005041,120]
[357309156,1744004213177,-500.0,0.0005041,120]
[357309157,1744004213234,-1131.81,0.0005041,120]
[357309158,1744004213291,-642.12,0.0005041,120]
[357309159,1744004213349,-500.0,0.0005041,120]
[357309160,1744004213408,-801.0,0.0005041,120]
[357309161,1744004213466,-500.0,0.0005041,120]
[357309162,1744004213524,-603.59,0.0005041,120]
[357309163,1744004213583,-500.0,0.0005041,120]
[357309164,1744004213642,-500.0,0.0005041,120]
[357309165,1744004213704,-1604.32,0.0005041,120]
[357309166,1744004213760,-500.0,0.0005041,120]
[357309167,1744004213818,-500.0,0.0005041,120]
[357309168,1744004213875,-565.78,0.0005041,120]
[357309169,1744004213933,-500.0,0.0005041,120]
[357309170,1744004213995,-500.0,0.0005041,120]
[357309171,1744004214061,-695.39,0.0005041,120]
[357309172,1744004214130,-500.0,0.0005041,120]
[357309173,1744004214198,-516.92,0.0005041,120]
[357309174,1744004214263,-500.0,0.0005041,120]
[357309175,1744004214324,-500.0,0.0005041,120]
[357309176,1744004214384,-595.23105556,0.0005041,120]
[357309177,1744004214443,-2327.34,0.0005041,120]
[357309178,1744004214506,-500.0,0.0005041,120]
[357309179,1744004214564,-500.0,0.0005041,120]
[357309180,1744004214621,-500.0,0.0005041,120]
[357309181,1744004214681,-3568.12,0.0005041,120]
[357309182,1744004214741,-224.26069178,0.0005041,120]
[357309183,1744004214797,-500.0,0.0005041,120]
[357309184,1744004214853,-500.0,0.0005041,120]
[357309185,1744004214907,-528.32963971,0.0005041,120]
[357309186,1744004214963,-500.0,0.0005041,120]
[357309187,1744004215022,-500.0,0.0005041,120]
[357309188,1744004215083,-500.0,0.0005041,120]
[357309189,1744004215143,-500.0,0.0005041,120]
[357309190,1744004215204,-500.0,0.0005041,120]
[357309191,1744004215265,-500.0,0.0005041,120]
[357309192,1744004215326,-385.35905498,0.0005041,120]
[357309193,1744004215388,-500.0,0.0005041,120]
[357309194,1744004215448,-500.0,0.0005041,120]
[357309195,1744004215511,-500.0,0.0005041,120]
[357309196,1744004215582,-536.42,0.0005041,120]
[357309197,1744004215651,-422.41417107,0.0005041,120]
[357309198,1744004215723,-166.31760993,0.0005041,120]
[357309199,1744004215790,-544.01724567,0.0005041,120]
[357309200,1744004215855,-500.0,0.0005041,120]
[357309201,1744004215912,-500.0,0.0005041,120]
[357309202,1744004215971,-500.0,0.0005041,120]
[357309203,1744004216028,-500.0,0.0005041,120]
[357309204,1744004216086,-500.0,0.0005041,120]
[357309205,1744004216151,-500.0,0.0005041,120]
[357309206,1744004216214,-500.0,0.0005041,30]
[357309207,1744004216276,-350.08956886,0.0005041,120]
[357309208,1744004216337,-500.0,0.0005041,120]
[357309209,1744004216397,-500.0,0.0005041,120]
[357309210,1744004216458,-601.79,0.0005041,120]
[357309211,1744004216519,-500.0,0.0005041,120]
[357309212,1744004216580,-593.70447043,0.0005041,120]
[357309213,1744004216644,-500.0,0.0005041,120]
[357309214,1744004216708,-500.0,0.0005041,120]
[357309215,1744004216766,-500.0,0.0005041,120]
[357309216,1744004216825,-500.0,0.0005041,120]
[357309217,1744004216881,-500.0,0.0005041,120]
[357309218,1744004216939,-500.0,0.0005041,120]
[357309219,1744004216997,-500.0,0.0005041,120]
[357309220,1744004217056,-500.0,0.0005041,120]
[357309221,1744004217116,-1483.35,0.0005041,120]
[357309222,1744004217178,-500.0,0.0005041,120]
[357309223,1744004217242,-500.0,0.0005041,120]
[357309224,1744004217305,-902.71,0.0005041,120]
[357309225,1744004217366,-500.0,0.0005041,120]
[357309226,1744004217426,-500.0,0.0005041,120]
[357309227,1744004217711,-500.0,0.0005041,120]
[357309228,1744004217772,-485.60368575,0.0005041,120]
[357309229,1744004217831,-500.0,0.0005041,120]
[357309230,1744004217894,-521.52,0.0005041,120]
[357309231,1744004217954,-4838.43,0.0005041,120]
[357309232,1744004218014,-500.0,0.0005041,120]
[357309233,1744004218080,-500.0,0.0005041,120]
[357309234,1744004218144,-500.0,0.0005041,120]
[357309235,1744004218210,-500.0,0.0005041,120]
[357309236,1744004218274,-500.0,0.0005041,120]
[357309237,1744004218337,-500.0,0.0005041,120]
[357309238,1744004218415,-500.0,0.0005041,120]
[357309239,1744004218480,-531.01571765,0.0005041,120]
[357309240,1744004218542,-331.76726317,0.0005041,120]
[357309241,1744004218607,-570.80493763,0.0005041,120]
[357309242,1744004218668,-500.0,0.0005041,120]
[357309243,1744004218730,-500.0,0.0005041,120]
[357309244,1744004218792,-500.0,0.0005041,120]
[357309245,1744004218850,-1085.1,0.0005041,120]
[357309246,1744004218909,-500.0,0.0005041,120]
[357309247,1744004218967,-528.43891919,0.0005041,120]
[357309248,1744004219026,-500.0,0.0005041,120]
[357309249,1744004219086,-500.0,0.0005041,120]
[357309250,1744004219146,-294.29634406,0.0005041,120]
[357309251,1744004219206,-757.6,0.0005041,120]
[357309252,1744004219265,-1000.0,0.0005041,120]
[357309253,1744004219331,-500.0,0.0005041,120]
[357309254,1744004219398,-275.90663238,0.0005041,120]
[357309255,1744004219459,-500.0,0.0005041,120]
[357309256,1744004219519,-500.0,0.0005041,120]
[357309257,1744004219578,-564.1686801,0.0005041,120]
[357309258,1744004219640,-339.27299723,0.0005041,120]
[357309259,1744004219705,-500.0,0.0005041,120]
[357309260,1744004219766,-500.0,0.0005041,120]
[357309261,1744004219826,-500.0,0.0005041,120]
[357309262,1744004219887,-500.0,0.0005041,120]
[357309263,1744004219947,-500.0,0.0005041,120]
[357309264,1744004220009,-285.83267682,0.0005041,120]
[357309265,1744004220075,-528.41,0.0005041,120]
[357309266,1744004220145,-23119.87,0.0005041,120]
[357309267,1744004220216,-500.0,0.0005041,120]
[357309268,1744004220285,-500.0,0.0005041,120]
[357309269,1744004220357,-500.0,0.0005041,120]
[357309270,1744004220424,-500.0,0.0005041,120]
[357309271,1744004220495,-500.0,0.0005041,120]
[357309272,1744004220559,-500.0,0.0005041,120]
[357309273,1744004220623,-576.76,0.0005041,120]
[357309274,1744004220694,-500.0,0.0005041,120]
[357309275,1744004220761,-500.0,0.0005041,120]
[357309276,1744004220824,-500.0,0.0005041,120]
[357309277,1744004220895,-500.0,0.0005041,120]
[357309278,1744004220959,-500.0,0.0005041,120]
[357309279,1744004221019,-335.29628926,0.0005041,120]
[357309280,1744004221078,-500.0,0.0005041,120]
[357309281,1744004221141,-500.0,0.0005041,120]
[357309282,1744004221202,-500.0,0.0005041,120]
[357309283,1744004221268,-637.56291722,0.0005041,120]
[357309284,1744004221331,-500.0,0.0005041,120]
[357309285,1744004221395,-500.0,0.0005041,120]
[357309286,1744004221460,-213.95462245,0.0005041,120]
[357309287,1744004221524,-598.2,0.0005041,120]
[357309288,1744004221593,-920.78,0.0005041,120]
[357309289,1744004221659,-500.0,0.0005041,120]
[357309290,1744004221725,-1760.18,0.0005041,120]
[357309291,1744004221788,-500.0,0.0005041,120]
[357309292,1744004221848,-500.0,0.0005041,120]
[357309293,1744004221907,-500.0,0.0005041,120]
[357309294,1744004221967,-500.0,0.0005041,120]
[357309295,1744004222026,-424.9215938,0.0005041,120]
[357309296,1744004222084,-151.0,0.00050479,120]
[357309297,1744004222152,-1607.14,0.00050684,120]
[357309298,1744004222217,-500.0,0.00050684,120]
[357309299,1744004222281,-2000.0,0.00050684,120]
[357309300,1744004222347,-313.402132,0.00050684,120]
[357309301,1744004222411,-3193.986782,0.00050684,120]
[357309302,1744004222477,-660.523371,0.00050684,120]
[357309303,1744004222540,-500.0,0.00050684,120]
[357309304,1744004222602,-500.0,0.00050684,120]
[357309305,1744004222666,-529.56,0.00050684,120]
[357309306,1744004222728,-500.0,0.00050684,120]
[357309307,1744004222794,-611.94086785,0.00050684,120]
[357309308,1744004222856,-500.0,0.00050684,120]
[357309309,1744004222917,-179.50309174,0.00050684,30]
[357309310,1744004222979,-500.0,0.00050684,120]
[357309311,1744004223042,-500.0,0.00050684,120]
[357309312,1744004223108,-500.0,0.00050684,120]
[357309313,1744004223174,-500.0,0.00050684,120]
[357309314,1744004223424,-500.0,0.00050684,120]
[357309315,1744004223494,-1873.68,0.00050684,120]
[357309316,1744004223566,-500.0,0.00050684,120]
[357309317,1744004223636,-500.0,0.00050684,120]
[357309318,1744004223710,-500.0,0.00050684,120]
[357309319,1744004223779,-500.0,0.00050684,120]
[357309320,1744004223851,-529.6465765,0.00050684,120]
[357309321,1744004223923,-500.0,0.00050684,120]
[357309322,1744004223990,-608.4633543,0.00050684,120]
[357309323,1744004224057,-500.0,0.00050684,120]
[357309324,1744004224124,-290.85984921,0.00050684,120]
[357309325,1744004224192,-500.0,0.00050684,120]
[357309326,1744004224258,-500.0,0.00050684,120]
[357309327,1744004224323,-500.0,0.00050684,120]
[357309328,1744004224390,-500.0,0.00050684,120]
[357309329,1744004224457,-622.49324733,0.00050684,120]
[357309330,1744004224523,-500.0,0.00050684,120]
[357309331,1744004224587,-500.0,0.00050684,120]
[357309332,1744004224650,-500.0,0.00050684,120]
[357309333,1744004224718,-500.0,0.00050684,120]
[357309334,1744004224782,-500.0,0.00050684,120]
[357309335,1744004224845,-500.0,0.00050684,120]
[357309336,1744004224906,-500.0,0.00050684,120]
[357309337,1744004224968,-500.0,0.00050684,120]
[357309338,1744004225028,-500.0,0.00050684,120]
[357309339,1744004225088,-1225.53,0.00050684,120]
[357309340,1744004225147,-500.0,0.00050684,120]
[357309341,1744004225207,-548.38112124,0.00050684,120]
[357309342,1744004225265,-500.0,0.00050684,120]
[357309343,1744004225326,-500.0,0.00050684,120]
[357309344,1744004225386,-500.0,0.00050684,120]
[357309345,1744004225447,-500.0,0.00050684,120]
[357309346,1744004225505,-500.0,0.00050684,120]
[357309347,1744004225562,-500.0,0.00050684,120]
[357309348,1744004225620,-512.05408544,0.00050684,120]
[357309349,1744004225678,-500.0,0.00050684,120]
[357309350,1744004225740,-500.0,0.00050684,120]
[357309351,1744004225799,-500.0,0.00050684,120]
[357309352,1744004225855,-500.0,0.00050684,120]
[357309353,1744004225911,-500.0,0.00050684,120]
[357309354,1744004225966,-500.0,0.00050684,120]
[357309355,1744004226025,-526.21288067,0.00050684,120]
[357309356,1744004226086,-500.0,0.00050684,120]
[357309357,1744004226146,-500.0,0.00050684,120]
[357309358,1744004226206,-500.0,0.00050684,120]
[357309359,1744004226265,-760.28,0.00050684,120]
[357309360,1744004226328,-500.0,0.00050684,120]
[357309361,1744004226389,-498.28152764,0.00050684,120]
[357309362,1744004226451,-500.0,0.00050684,120]
[357309363,1744004226510,-500.0,0.00050684,120]
[357309364,1744004226571,-594.73188987,0.00050684,120]
[357309365,1744004226632,-500.0,0.00050684,120]
[357309366,1744004226702,-500.0,0.00050684,120]
[357309367,1744004226760,-500.0,0.00050684,120]
[357309368,1744004226818,-500.0,0.00050684,120]
[357309369,1744004226881,-638.48415772,0.00050684,120]
[357309370,1744004226940,-835.94,0.00050684,120]
[357309371,1744004226996,-500.0,0.00050684,120]
[357309372,1744004227056,-500.0,0.00050684,120]
[357309373,1744004227119,-500.0,0.00050684,120]
[357309374,1744004227183,-522.99686804,0.00050684,120]
[357309375,1744004227248,-403.07499979,0.00050684,120]
[357309376,1744004227310,-500.0,0.00050684,120]
[357309377,1744004227373,-500.0,0.00050684,120]
[357309378,1744004227434,-596.65,0.00050684,120]
[357309379,1744004227496,-800.51,0.00050684,120]
[357309380,1744004227558,-646.46,0.00050684,120]
[357309381,1744004227619,-500.0,0.00050684,120]
[357309382,1744004227682,-797.82,0.00050684,120]
[357309383,1744004227746,-698.98,0.00050684,120]
[357309384,1744004227808,-669.44,0.00050684,120]
[357309385,1744004227870,-2707.98,0.00050684,120]
[357309386,1744004227933,-500.0,0.00050684,120]
[357309387,1744004227996,-500.0,0.00050684,120]
[357309388,1744004228057,-500.0,0.00050684,120]
[357309389,1744004228117,-500.0,0.00050684,120]
[357309390,1744004228179,-500.0,0.00050684,120]
[357309391,1744004228246,-500.0,0.00050684,120]
[357309392,1744004228313,-500.0,0.00050684,120]
[357309393,1744004228378,-524.26,0.00050684,120]
[357309394,1744004228442,-2353.85,0.00050684,120]
[357309395,1744004228506,-500.0,0.00050684,120]
[357309396,1744004228570,-987.22,0.00050684,120]
[357309397,1744004228633,-500.0,0.00050684,120]
[357309398,1744004228850,-500.0,0.00050684,120]
[357309399,1744004228910,-500.0,0.00050684,120]
[357309400,1744004228971,-500.0,0.00050684,120]
[357309401,1744004229034,-500.0,0.00050684,120]
[357309402,1744004229102,-500.0,0.00050684,120]
[357309403,1744004229172,-500.0,0.00050684,120]
[357309404,1744004229237,-500.0,0.00050684,120]
[357309405,1744004229302,-500.0,0.00050684,120]
[357309406,1744004229370,-500.0,0.00050684,120]
[357309407,1744004229435,-500.0,0.00050684,120]
[357309408,1744004229499,-500.0,0.00050684,120]
[357309409,1744004229561,-500.0,0.00050684,120]
[357309410,1744004229625,-551.53,0.00050684,120]
[357309411,1744004229694,-500.0,0.00050684,120]
[357309412,1744004229766,-678.92,0.00050684,120]
[357309413,1744004229829,-761.56,0.00050684,120]
[357309414,1744004229898,-526.71,0.00050684,30]
[357309415,1744004229960,-500.0,0.00050684,120]
[357309416,1744004230023,-515.69,0.00050684,120]
[357309417,1744004230088,-500.0,0.00050684,120]
[357309418,1744004230155,-500.0,0.00050684,120]
[357309419,1744004230226,-500.0,0.00050684,120]
[357309420,1744004230297,-607.42,0.00050684,120]
[357309421,1744004230369,-1141.72,0.00050684,120]
[357309422,1744004230438,-500.0,0.00050684,120]
[357309423,1744004230502,-500.0,0.00050684,120]
[357309424,1744004230563,-329.68312225,0.00050684,120]
[357309425,1744004230626,-836.39,0.00050684,120]
[357309426,1744004230690,-500.0,0.00050684,120]
[357309427,1744004230751,-184.5873503,0.00050684,120]
[357309428,1744004230817,-500.0,0.00050684,120]
[357309429,1744004230880,-500.0,0.00050684,120]
[357309430,1744004230942,-500.0,0.00050684,120]
[357309431,1744004231002,-176.940987,0.00050684,120]
[357309432,1744004231064,-500.0,0.00050684,120]
[357309433,1744004231128,-579.84106539,0.00050684,120]
[357309434,1744004231192,-500.0,0.00050684,120]
[357309435,1744004231254,-1188.09,0.00050684,120]
[357309436,1744004231316,-500.0,0.00050684,120]
[357309437,1744004231379,-579.77400343,0.00050684,120]
[357309438,1744004231447,-500.0,0.00050684,120]
[357309439,1744004231512,-188.782644,0.00050684,120]
[357309440,1744004231576,-500.0,0.00050684,120]
[357309441,1744004231638,-500.0,0.00050684,120]
[357309442,1744004231708,-158.10955826,0.00050684,120]
[357309443,1744004231774,-869.5,0.00050684,120]
[357309444,1744004231835,-500.0,0.00050684,120]
[357309445,1744004231900,-490.53163243,0.00050684,120]
[357309446,1744004231965,-500.0,0.00050684,120]
[357309447,1744004232029,-500.0,0.00050684,120]
[357309448,1744004232093,-500.0,0.00050684,120]
[357309449,1744004232156,-500.0,0.00050684,120]
[357309450,1744004232221,-500.0,0.00050684,120]
[357309451,1744004232284,-611.418099,0.00050684,120]